Cogmind - Beta 17.1 @@@ ROGUE MODE // 2026.08.27 @ 01:44:48 Player: kway_side Result: Destroyed by G-34 Mercenary with Small Laser Performance ------------- Evolutions (0) 0 Regions Visited (2) 400 Robots Destroyed (14) 70 Value Destroyed (383) 383 Prototype IDs (1) 20 Alien Tech Used (0) 0 Bonus (-37) -37 TOTAL SCORE: 836 Bonus ------- Friendly Fire -37 Cogmind --------- Core Integrity 0/250 Matter 293/300 Energy 247/250 System Corruption 0% Temperature Cool (6) Movement Walking (330) Ox3 Location -10/Subcaves Parts ------- > --- POWER (1) -------- Ion Engine > --- PROPULSION (2) --- Aluminum Leg Carbon-fiber Leg > --- UTILITY (2) ------ Huge Storage Unit Improved Terrain Scanner > --- WEAPON (2) ------- Assault Rifle Light Cannon > --- INVENTORY (25) --- Light Ion Engine Subdweller Power Source Light Treads Aluminum Leg Aluminum Leg Subdweller Monowheel Large Storage Unit Subdweller Optics Seismic Detector Targeting Computer Scrap Shield Improved Medium Laser Subdweller Beam Cannon Assault Rifle Assault Rifle Light Assault Rifle Subdweller Machine Gun Light Cannon Light Cannon Light Cannon Mining Laser Hammer Scrap Shield Fragment (40) Peak State ------------ > --- POWER ------------ Ion Engine > --- PROPULSION ------- Aluminum Leg Carbon-fiber Leg > --- UTILITY ---------- Huge Storage Unit Improved Terrain Scanner > --- WEAPON ----------- Assault Rifle Light Cannon > --- INVENTORY -------- Light Ion Engine Subdweller Power Source Light Treads Aluminum Leg Aluminum Leg Subdweller Monowheel Large Storage Unit Subdweller Optics Seismic Detector Targeting Computer Scrap Shield Improved Medium Laser Subdweller Beam Cannon Assault Rifle Assault Rifle Light Assault Rifle Subdweller Machine Gun Light Cannon Light Cannon Light Cannon Mining Laser Hammer Scrap Shield Fragment [Rating: 14] Favorites ----------- Power Ion Engine Engine Ion Engine Propulsion Aluminum Leg Treads Light Treads Leg Aluminum Leg Utility Huge Storage Unit Device Improved Terrain Scanner Storage Huge Storage Unit Protection Propulsion Shielding Weapon Assault Rifle Energy Gun Improved Medium Laser Ballistic Gun Assault Rifle Ballistic Cannon Light Cannon Special Weapon Mining Laser Build | -11 -10 -10 ------- Run | Yrd Mat Sub Slots Evolved . | . . . Power . | . . . Propulsion . | . . . Utility . | . . . Weapon . | . . . Parts Attached 22 | 1 14 7 Power 2 | . 1 1 Engine 2 | . 1 1 Core . | . . . Reactor . | . . . Propulsion 5 | . 3 2 Treads 2 | . 2 . Leg 3 | . 1 2 Wheel . | . . . Hover . | . . . Flight . | . . . Utility 7 | 1 4 2 Device 2 | 1 1 . Storage 3 | . 3 . Processor . | . . . Hackware . | . . . Protection 2 | . . 2 Artifact . | . . . Weapon 8 | . 6 2 Energy Gun 2 | . 2 . Energy Cannon . | . . . Ballistic Gun 4 | . 3 1 Ballistic Cannon 1 | . . 1 Launcher . | . . . Special Weapon 1 | . 1 . Impact Weapon . | . . . Slashing Weapon . | . . . Piercing Weapon . | . . . Special Melee Weapon . | . . . Unidentified Prototypes 1 | . 1 . Parts Lost 4 | . . 4 Power 1 | . . 1 Propulsion 1 | . . 1 Utility 2 | . . 2 Weapon . | . . . Highest Loss Streak 3 | . . 3 To Critical Strikes . | . . . Average Backups 19 | 6 16 22 Power 1 | 1 1 1 Propulsion 3 | 4 3 3 Utility 4 | . 3 5 Weapon 9 | 1 8 10 Tool/Special . | . . . Unused Backups 26 | . 9 17 Power 3 | . 1 2 Propulsion 7 | . 4 3 Utility 4 | . 1 3 Weapon 12 | . 3 9 Tool/Special . | . . . Average Slot Usage (%) 99 | . 99 99 Engine 14 | . 14 14 Treads 9 | . 18 2 Leg 18 | . 9 25 Device 9 | . 14 6 Storage 14 | . 14 14 Protection 3 | . . 6 Ballistic Gun 18 | . 25 12 Ballistic Cannon 6 | . . 11 Special Weapon 2 | . . 4 Peak Build Rating 14 | 8 12 14 Average Rating 11 | 6 10 12 On Entrance 8 | 6 8 11 Avg Prop Armor Cover (%) . | . . . Naked Turns . | . . . Heaviest Build 92 | 13 90 92 Greatest Support 40 | 20 40 40 Greatest Overweight (x) 4 | . 2 4 Average Overweight (x) 2 | . 1 3 Largest Inventory Capacity 25 | 8 25 25 Average Capacity 23 | 8 20 25 Most Carried 25 | 8 22 25 Average Carried 21 | 6 16 24 Final Capacity 25 | 8 25 25 Final Carried 24 | 8 21 24 Class Distribution -------------------- 100% | Mutant Dominant Class ---------------- Mutant | -10/Materials Mutant | -10/Subcaves Resources | -11 -10 -10 ----------- Run | Yrd Mat Sub Matter Collected 712 | 216 222 274 Remotely . | . . . Salvage Created 452 | 16 299 137 Parts 28 | 3 18 7 Haulers Intercepted 1 | . 1 . Recyclers Shooed 1 | 1 . . Parts Field Recycled . | . . . Retrieved Matter . | . . . Parts Self-Destructed 14 | . . 14 Prevented . | . . . Parts Restored . | . . . Kills | -11 -10 -10 ------- Run | Yrd Mat Sub Combat Hostiles Destroyed 12 | . 8 4 Guns 9 | . 8 1 Cannons 3 | . . 3 Classes Destroyed 5 | 1 3 1 Tunneler 1 | 1 . . Hauler 1 | . 1 . Swarmer 3 | . 2 1 Grunt 7 | . 6 1 Subdweller 2 | . . 2 Best Kill Streak 3 | 1 3 1 Combat Bots Only 3 | . 3 1 Max Kills in Single Turn 1 | 1 1 1 Gunslinging . | . . . Exploded . | . . . Melee . | . . . Uniques/NPCs Destroyed . | . . . Combat | -11 -10 -10 -------- Run | Yrd Mat Sub Hostile Shots Fired 109 | . 46 63 Missed 31 | . 15 16 Hits 78 | . 31 47 Projectile 78 | . 31 47 Critical Strikes 1 | . . 1 Damage Taken 1379 | . 408 971 Core 250 | . 72 178 Absorbed by Shields . | . . . Redirected to Shielding 50 | . . 50 Core Remaining (%) 100 | 100 . . Volleys Fired 54 | 3 30 21 Largest 2 | 2 2 2 Hottest 100 | 40 100 100 Shots Fired 100 | 6 59 35 Gun 85 | 6 58 21 Cannon 9 | . . 9 Launcher . | . . . Special 6 | . 1 5 Kinetic 90 | 6 54 30 Thermal 10 | . 5 5 Explosive . | . . . Electromagnetic . | . . . Robot Hit Streak 9 | 4 9 6 Robot Miss Streak 5 | 1 5 1 Penetration Max . | . . . Secondary Targets . | . . . Shots Hit Robots 60 | 5 32 23 Core Hits 27 | 2 17 8 Critical Kills . | . . . Critical Parts Destroyed 1 | . 1 . Critical Strikes 2 | . 1 1 Destroy 1 | . 1 . Blast 1 | . . 1 Melee Attacks . | . . . Impact . | . . . Slashing . | . . . Piercing . | . . . Sneak Attacks . | . . . Combat Hostiles . | . . . Follow-up Attacks . | . . . Damage Inflicted 769 | 37 427 305 Guns 625 | 37 427 161 Cannons 144 | . . 144 Explosions . | . . . Melee . | . . . Ramming . | . . . Kinetic 720 | 37 378 305 Thermal 49 | . 49 . Explosive . | . . . Electromagnetic . | . . . Impact . | . . . Slashing . | . . . Piercing . | . . . Highest Corruption . | . . . Average Corruption . | . . . Corruption Purged . | . . . Corruption Blocked . | . . . Overload Shots . | . . . Overflow Damage . | . . . Projectiles . | . . . Explosions . | . . . Melee . | . . . Knockbacks 1 | . . 1 Impact . | . . . Kinetic 1 | . . 1 Secondary . | . . . Self-Inflicted Damage . | . . . Shots . | . . . Rammed . | . . . Targets Rammed . | . . . Kicked . | . . . Crushed . | . . . Highest Temperature 102 | . 102 . Average Temperature 42 | . 42 . Received Heat Transfer 393 | . 162 231 Siege Activations . | . . . Martial Activations . | . . . Shielding Activations . | . . . Robots Disrupted . | . . . Combat Hostiles . | . . . Robots Corrupted . | . . . Combat Hostiles . | . . . Parts Fried . | . . . Impact Corruptions . | . . . Robots Melted . | . . . Combat Hostiles . | . . . Parts Melted . | . . . Heat Transferred 111 | . 111 . Parts Sabotaged . | . . . Parts Stolen . | . . . Parts Stripped . | . . . Power Chain Reactions . | . . . Alert | -11 -10 -10 ------- Run | Yrd Mat Sub Maximum Alert Level . | . . . Low Security (%) 100 | 100 100 . Level 1 . | . . . Level 2 . | . . . Level 3 . | . . . Level 4 . | . . . Level 5 . | . . . High Security . | . . . Max Security . | . . . Peak Influence 80 | 5 80 . Initial . | . . . Average 18 | 3 18 . Influence Increases 292 | 5 237 50 Destroy 0b10 Robot/C 200 | . 160 40 Destroy 0b10 Robot/NC 10 | 5 5 . Destroy Leader 42 | . 32 10 Successful Hack 24 | . 24 . Destroy Structure 1 | . 1 . Lose Combat Pursuer 15 | . 15 . Influence Decreases 262 | 5 236 21 Entered New Map 1 | . . 1 Time Decay 261 | 5 236 20 Squads Dispatched 1 | . 1 . Investigation 1 | . 1 . Extermination . | . . . Reinforcement . | . . . Assault . | . . . Garrison . | . . . Intercept . | . . . Searches Triggered . | . . . Construction Impeded . | . . . Haulers Reinforced . | . . . Active Scanning Responses . | . . . Cargo Convoy Interrupts . | . . . Stealth | -11 -10 -10 --------- Run | Yrd Mat Sub Distress Signals . | . . . Communications Jammed . | . . . Distress Signals . | . . . Times Spotted 31 | . 16 15 Peak Tracking Total 6 | . 3 6 Tactical Retreats 1 | . 1 . Traps | -11 -10 -10 ------- Run | Yrd Mat Sub Traps Triggered 5 | . 4 1 Indirectly . | . . . Trap Hack Attempts . | . . . Triggered . | . . . Disarmed . | . . . Reprogrammed . | . . . Reused . | . . . Traps Extracted . | . . . Installed . | . . . Triggered . | . . . Machines | -11 -10 -10 ---------- Run | Yrd Mat Sub Machines Disabled . | . . . Max in Single Turn . | . . . Machines Repaired . | . . . Machines Dismantled . | . . . Machines Sabotaged . | . . . Overloaded Fab Kills . | . . . Hacking | -11 -10 -10 --------- Run | Yrd Mat Sub Machines Accessed 9 | . 9 . Terminals 7 | . 7 . Fabricators . | . . . Repair Stations . | . . . Recycling Units 2 | . 2 . Scanalyzers . | . . . Garrison Access . | . . . Total Hacks 19 | . 19 . Successful 9 | . 9 . Failed 10 | . 10 . Catastrophic 1 | . 1 . Database Lockouts . | . . . Manual 14 | . 14 . Terminals 15 | . 15 . Fabricators . | . . . Repair Stations . | . . . Recycling Units 4 | . 4 . Scanalyzers . | . . . Garrison Access . | . . . Terminal Hacks 2 | . 2 . Robot Analysis 2 | . 2 . Fabricator Hacks . | . . . Repair Station Hacks . | . . . Recycling Unit Hacks 2 | . 2 . Report Inventory 2 | . 2 . Scanalyzer . | . . . Garrison Access Hacks . | . . . Unauthorized Hacks 4 | . 4 . Terminals 4 | . 4 . Skim 4 | . 4 . Fabricators . | . . . Repair Stations . | . . . Recycling Units . | . . . Scanalyzers . | . . . Garrison Access . | . . . Data Cores Recovered . | . . . Used . | . . . Hacking Detections 6 | . 6 . Full Trace Events . | . . . Feedback Events . | . . . Feedback Blocked . | . . . Robot Schematics Acquired . | . . . Robots Built . | . . . Authchips . | . . . Time . | . . . Total Robot Build Rating . | . . . Part Schematics Acquired . | . . . Parts Built . | . . . Authchips . | . . . Time . | . . . Total Part Build Rating . | . . . Part Studies Acquired . | . . . Parts Repaired . | . . . Time . | . . . Parts Recycled . | . . . Recycled Matter . | . . . Retrieved Matter . | . . . Retrieved Components . | . . . Parts Scanalyzed . | . . . Part Schematics Acquired . | . . . Parts Damaged . | . . . Bothacking | -11 -10 -10 ------------ Run | Yrd Mat Sub Used RIF Installer . | . . . Robots Hacked . | . . . Non-combat . | . . . Combat . | . . . Robot Hacks Applied . | . . . Relay Couplers Released . | . . . Fabnet Peak Effective % . | . . . Robots Rewired . | . . . Allies Hacked . | . . . Hacks Repelled . | . . . Allies | -11 -10 -10 -------- Run | Yrd Mat Sub Total Allies . | . . . Largest Group . | . . . Highest-Rated Group . | . . . Highest-Rated Ally . | . . . Total Orders . | . . . Ally Attacks . | . . . Total Damage . | . . . Kills . | . . . Allies Corrupted . | . . . Allies Melted . | . . . Intel | -11 -10 -10 ------- Run | Yrd Mat Sub Active Infowar (turns) 3153 | 9 1992 1152 Terrain 3144 | . 1992 1152 Seismic 9 | 9 . . Robot Analysis Total 2 | . 2 . Derelict Logs Recovered 1 | . . 1 Drone Launches . | . . . Drone Recoveries . | . . . Exploration | -11 -10 -10 ------------- Run | Yrd Mat Sub Turns Passed 4573 | 21 1992 2560 Spaces Moved 1458 | 9 756 693 Core . | . . . Treads 460 | . 386 74 Legs 998 | 9 370 619 Wheels . | . . . Hover . | . . . Flight . | . . . Fastest Speed 120 | 120 120 320 Average Speed 287 | 120 240 341 Slowest Speed 400 | 120 320 400 Overloaded Moves . | . . . Propulsion Burnouts . | . . . Robots Hopped . | . . . Potential Cave-ins . | . . . Cave-ins Triggered . | . . . Exploration Rate (%) 43 | 2 93 35 Regions Visited 2 Branch Regions 1 Pre-discovered Areas . | . . . Known Exits Taken . | . . . Unknown Exits Taken 2 | 1 1 . Scrap Searched . | . . . Spaces Dug 1 | . 1 . Terrain Destroyed 1 | . 1 . Melee . | . . . Projectile 1 | . 1 . AOE . | . . . Terrain Rammed . | . . . Walls Destroyed . | . . . Machines Disabled . | . . . Actions | -11 -10 -10 --------- Run | Yrd Mat Sub Total 1726 | 14 875 837 Wait 141 | . 43 98 Move 1456 | 8 755 693 Hop . | . . . Pick Up 26 | 2 17 7 Fast Attach 5 | 1 4 . Attach 4 | . . 4 Detach 2 | . 2 . Swap 19 | . 10 9 Drop 16 | . 14 2 Fire 54 | 3 30 21 Melee . | . . . Ram . | . . . Kick . | . . . Crush . | . . . Escape Stasis . | . . . Rewire 3 | . . 3 Trap . | . . . Miscellaneous . | . . . Route ------- -11/Scrapyard -10/Materials (discovered 6 exits: [*Mat x3] / [*Min x2] / [*Sub]) -10/Subcaves (discovered 1 exit: [Mat]) History --------- Turn | Location | Event 1 | -11/Scrapyard | Discovered new exit (range 3) 22 | -11/Scrapyard | Entered Materials 47 | -10/Materials | Discovered new exit (range 5) 153 | -10/Materials | Discovered new exit (range 3) 326 | -10/Materials | Build established: Mutant 447 | -10/Materials | Discovered new exit (range 8) 532 | -10/Materials | Discovered new exit (range 10) 722 | -10/Materials | Derelicts attacked the area 925 | -10/Materials | Discovered new exit (range 11) 1039 | -10/Materials | Discovered new exit (range 10) 2014 | -10/Materials | Entered Subcaves 2015 | -10/Subcaves | Approached by a straggling Scientist 2192 | -10/Subcaves | A swath of the cavern ceiling suddenly collapsed 2248 | -10/Subcaves | Ambushed by swarm of Subdwellers 2264 | -10/Subcaves | Core integrity fell below 50% 2304 | -10/Subcaves | Lost 3 parts (1p1n1u) 3246 | -10/Subcaves | Learned 2 Materials zone layouts 4126 | -10/Subcaves | Core integrity fell below 20% 4499 | -10/Subcaves | Discovered new exit (range 15) 4574 | -10/Subcaves | Destroyed by G-34 Mercenary with Small Laser Last Messages --------------- Data stored: Materials zone layouts (x2). 03319_ Propulsion Shielding destroyed. 03319_ Y-45 Defender suffers critical hit (Burn). 03321_ Y-45 Defender destroyed. 03325_ Acquired 3 matter. 03332_ Lgt. Treads fries itself beyond repair. 03341_ Acquired 30 matter. 03522_ Acquired 10 matter. 04125_ Triggered Piercing Trap. 04125_ Spikes shoot up from the floor. 04125_ Critical hit (Impale). 04186_ Subatomizers dissect the Aluminum Leg. 04209_ Acquired 10 matter. 04487_ Subatomizers dissect the Sub. Monowheel. 04499_ EXIT=FOUND 04566_ SQ-BJ2(g) destroyed. 04567_ Acquired 23 matter. 04571_ G-34 Mercenary knocked back. 04572_ Acquired 7 matter. 04574_ G-47 Trooper destroyed. Map ----- +----------------------------------------------------+ | ?????????????????????????????????????????????????? | | ?????????????????????????????????????????????????? | | ?????????????????????????????????????????????????? | | ?????????????????????????????????????????????????? | | ?????????????????????????????????????????????????? | | ?????????????????????????????????????????????????? | | ?????????????????????????????????????????????????? | | ?????????????????????????????????????????????????? | | ????????????????????????? ??????????????????????? | | ????????????????????????? ?????????????????????? | | ????????????????????????? ?????????????????????? | | ????????????????????????? ??#??????????????????? | | ????????????????????????? #???#?????????????????? | | ????????????????????????? ????????#???????#?????? | | ?????????????????? ??#### ???#??????????????????? | | ????????????? ???????## ??????????????????????? | | ??????????????????? ## ???????